Cogmind - Beta 14 @@@ ROGUE MODE // 2024.12.29 @ 11:48:39 Player: Mathewnd Result: Destroyed by H-55 Commando with Gauss Rifle Performance ------------- Evolutions (3) 1500 Regions Visited (8) 1600 Robots Destroyed (61) 305 Value Destroyed (1770) 1770 Prototype IDs (3) 60 Alien Tech Used (0) 0 Bonus (-16) -16 TOTAL SCORE: 5219 Bonus ------- High Alert Combat Kills 40 Follower Combat Kills 89 Friendly Fire -145 Cogmind --------- Core Integrity 0/700 Matter 279/300 Energy 100/100 System Corruption 0% Temperature Cool (0) Movement Core (200) Ox3 Location -7/Factory Parts ------- > --- POWER (1) -------- (None) > --- PROPULSION (5) --- (None) > --- UTILITY (5) ------ Medium Storage Unit Signal Interpreter Hacking Suite Hacking Suite > --- WEAPON (2) ------- (None) > --- INVENTORY (10) --- Micro Nuclear Core Experimental Sensor Array ECM Suite Improved Light Armor Plating Hacking Suite Hacking Suite System Restoration Module Peak State ------------ > --- POWER ------------ Light Deuterium Engine > --- PROPULSION ------- Flight Unit Flight Unit Flight Unit Cesium-ion Thruster Xenon Bombardment Thruster > --- UTILITY ---------- Medium Storage Unit Improved Sensor Array Signal Interpreter Hacking Suite Hacking Suite > --- WEAPON ----------- Rocket Launcher Katana > --- INVENTORY -------- Micro Nuclear Core Experimental Sensor Array ECM Suite Improved Light Armor Plating Hacking Suite Hacking Suite System Restoration Module [Rating: 31] Favorites ----------- Power Ion Engine Engine Ion Engine Power Core Light Nuclear Core Propulsion Light Treads Treads Light Treads Flight Unit Flight Unit Utility Signal Interpreter Device Improved Sensor Array Storage Medium Storage Unit Processor Signal Interpreter Hackware Hacking Suite Protection Light Armor Plating Weapon Light Assault Rifle Energy Gun Particle Gun Ballistic Gun Light Assault Rifle Launcher Rocket Launcher Slashing Weapon Katana Build | -11 -10 -10 -9 -9 -9 -8 -8 -7 ------- Run | Yrd Mat Min Mat Min Exi Min Mat Fac Slots Evolved 6 | . . . 2 . . . 2 2 Power . | . . . . . . . . . Propulsion 3 | . . . 2 . . . . 1 Utility 3 | . . . . . . . 2 1 Weapon . | . . . . . . . . . Parts Attached 58 | 6 5 1 3 2 . 1 22 18 Power 6 | 1 . . . 1 . . 2 2 Engine 3 | 1 . . . 1 . . . 1 Core 3 | . . . . . . . 2 1 Reactor . | . . . . . . . . . Propulsion 21 | 2 . 1 3 . . 1 8 6 Treads 14 | 2 . 1 3 . . 1 7 . Leg . | . . . . . . . . . Wheel . | . . . . . . . . . Hover . | . . . . . . . . . Flight 7 | . . . . . . . 1 6 Utility 12 | 1 2 . . . . . 6 3 Device 4 | . . . . . . . 3 1 Storage 2 | 1 1 . . . . . . . Processor 1 | . 1 . . . . . . . Hackware 2 | . . . . . . . . 2 Protection 3 | . . . . . . . 3 . Artifact . | . . . . . . . . . Weapon 19 | 2 3 . . 1 . . 6 7 Energy Gun 2 | 1 1 . . . . . . . Energy Cannon . | . . . . . . . . . Ballistic Gun 9 | 1 2 . . 1 . . 5 . Ballistic Cannon . | . . . . . . . . . Launcher 3 | . . . . . . . 1 2 Special Weapon . | . . . . . . . . . Impact Weapon . | . . . . . . . . . Slashing Weapon 5 | . . . . . . . . 5 Piercing Weapon . | . . . . . . . . . Special Melee Weapon . | . . . . . . . . . Unidentified Prototypes 1 | . . . . . . . 1 . Parts Lost 23 | . . 1 1 . . . 10 11 Power 3 | . . . . . . . 1 2 Propulsion 14 | . . 1 1 . . . 6 6 Utility 2 | . . . . . . . 1 1 Weapon 4 | . . . . . . . 2 2 Highest Loss Streak 6 | . . 1 1 . . . 3 6 To Critical Strikes . | . . . . . . . . . Average Slot Usage (%) 95 | . 97 100 97 100 100 100 93 83 Engine 8 | . 14 14 11 11 11 11 2 2 Core 2 | . . . . . . . 6 3 Treads 33 | . 28 28 42 44 44 44 34 . Flight 3 | . . . . . . . . 31 Device 2 | . . . . . . . 8 6 Storage 10 | . 14 14 11 11 11 11 9 7 Processor 10 | . 11 14 11 11 11 11 9 7 Hackware 1 | . . . . . . . . 14 Protection 1 | . . . . . . . 5 . Energy Gun 1 | . 6 . . . . . . . Ballistic Gun 18 | . 20 28 22 22 22 22 17 . Peak Build Rating 31 | 6 8 8 10 11 11 13 25 31 Average Rating 14 | 4 7 7 9 10 11 11 21 24 On Entrance 9 | . 6 8 8 10 11 11 13 21 Naked Turns . | . . . . . . . . . Heaviest Build 23 | 13 17 17 17 17 17 17 23 23 Greatest Support 84 | 40 40 40 80 80 80 80 84 42 Greatest Overweight (x) 4 | . . . . . . . . 4 Average Overweight (x) . | . . . . . . . . . Largest Inventory Capacity 10 | 8 10 10 10 10 10 10 10 10 Average Capacity 9 | 6 8 10 10 10 10 10 10 10 Most Carried 10 | 6 10 10 10 10 10 10 10 10 Average Carried 8 | 3 7 9 9 10 10 10 9 7 Final Capacity 10 | 8 10 10 10 10 10 10 10 10 Final Carried 10 | 4 10 10 10 10 10 10 10 7 Class Distribution -------------------- 70% | Scavenger-Mutant 19% | Mutant 9% | Scavenger-Sprinter Dominant Class ---------------- Mutant | -10/Materials Mutant | -10/Mines Scavenger-Mutant | -9/Materials Scavenger-Mutant | -9/Mines Scavenger-Mutant | -9/Exiles Scavenger-Mutant | -8/Mines Scavenger-Mutant | -8/Materials Scavenger-Sprinter | -7/Factory Resources | -11 -10 -10 -9 -9 -9 -8 -8 -7 ----------- Run | Yrd Mat Min Mat Min Exi Min Mat Fac Matter Collected 1303 | 244 59 53 111 9 . 10 669 148 Remotely . | . . . . . . . . . Salvage Created 1996 | 17 283 53 404 . . . 1014 225 Parts 132 | 3 17 4 25 . . . 58 25 Haulers Intercepted 4 | . 1 . 2 . . . 1 . Recyclers Shooed 2 | . . . . . . . 2 . Parts Field Recycled . | . . . . . . . . . Retrieved Matter . | . . . . . . . . . Parts Self-Destructed . | . . . . . . . . . Prevented . | . . . . . . . . . Kills | -11 -10 -10 -9 -9 -9 -8 -8 -7 ------- Run | Yrd Mat Min Mat Min Exi Min Mat Fac Combat Hostiles Destroyed 45 | . 6 1 8 . . . 25 5 Melee 2 | . . . . . . . . 2 Guns 36 | . 6 1 8 . . . 21 . AOE 7 | . . . . . . . 4 3 Classes Destroyed 11 | 1 4 . 1 . . . 4 1 Worker 3 | 1 . . . . . . . 2 Builder 2 | . . . . . . . 1 1 Hauler 4 | . 1 . 2 . . . 1 . Operator 1 | . . . . . . . 1 . Watcher 5 | . 1 . . . . . 2 2 Swarmer 16 | . 1 . 3 . . . 9 3 Grunt 20 | . 5 1 3 . . . 11 . Brawler 1 | . . . . . . . 1 . Sentry 6 | . . . 2 . . . 4 . Hunter 1 | . . . . . . . 1 . Programmer 2 | . . . . . . . . 2 Best Kill Streak 5 | 1 2 1 4 . . . 5 5 Combat Bots Only 5 | . 1 1 2 . . . 5 3 Max Kills in Single Turn 3 | 1 1 1 1 . . . 2 3 Gunslinging . | . . . . . . . . . Exploded 2 | . . . . . . . 2 2 Melee 1 | . . . . . . . . 1 Uniques/NPCs Destroyed . | . . . . . . . . . Combat | -11 -10 -10 -9 -9 -9 -8 -8 -7 -------- Run | Yrd Mat Min Mat Min Exi Min Mat Fac Hostile Shots Fired 384 | . 42 10 57 . . . 173 102 Missed 112 | . 9 3 19 . . . 42 39 Damage Taken 3963 | . 447 105 415 . . . 1829 1167 Core 1020 | . 63 . 69 . . . 181 707 Absorbed by Shields . | . . . . . . . . . Core Remaining (%) 80 | 100 . 74 . . . 82 67 . Volleys Fired 178 | 1 35 6 37 . . . 95 4 Largest 2 | 2 2 2 2 . . . 2 1 Hottest 85 | 70 85 40 40 . . . 53 33 Shots Fired 350 | 2 70 12 74 . . . 188 4 Gun 343 | 2 70 12 74 . . . 185 . Cannon . | . . . . . . . . . Launcher 7 | . . . . . . . 3 4 Special . | . . . . . . . . . Kinetic 320 | 1 48 12 74 . . . 185 . Thermal 23 | 1 22 . . . . . . . Explosive 7 | . . . . . . . 3 4 Electromagnetic . | . . . . . . . . . Robot Hit Streak 24 | 1 12 10 24 . . . 16 1 Robot Miss Streak 4 | 1 3 2 4 . . . 4 3 Penetration Max . | . . . . . . . . . Secondary Targets 4 | . . . 3 . . . 1 . Max Gunslinging Chain 1 | . . . 1 . . . 1 . Shots Hit Robots 259 | 1 50 10 53 . . . 133 12 Core Hits 134 | 1 17 5 23 1 . . 68 19 Critical Kills 1 | . . 1 . . . . . . Critical Parts Destroyed 2 | . 1 . . . . . 1 . Critical Strikes 6 | . 3 1 . . . . 1 1 Burn 2 | . 2 . . . . . . . Destroy 3 | . 1 1 . . . . 1 . Sever 1 | . . . . . . . . 1 Melee Attacks 19 | . . . . . . . . 19 Impact . | . . . . . . . . . Slashing 19 | . . . . . . . . 19 Piercing . | . . . . . . . . . Sneak Attacks 2 | . . . . . . . . 2 Combat Hostiles 1 | . . . . . . . . 1 Follow-up Attacks . | . . . . . . . . . Damage Inflicted 4101 | 10 516 75 424 9 . . 2095 972 Guns 2761 | 10 514 75 424 . . . 1738 . Cannons . | . . . . . . . . . Explosions 904 | . . . . . . . 352 552 Melee 420 | . . . . . . . . 420 Ramming 16 | . 2 . . 9 . . 5 . Kinetic 2503 | 10 256 75 424 . . . 1738 . Thermal 258 | . 258 . . . . . . . Explosive 904 | . . . . . . . 352 552 Electromagnetic . | . . . . . . . . . Impact . | . . . . . . . . . Slashing 420 | . . . . . . . . 420 Piercing . | . . . . . . . . . Highest Corruption . | . . . . . . . . . Average Corruption . | . . . . . . . . . Corruption Purged . | . . . . . . . . . Corruption Blocked . | . . . . . . . . . Overload Shots . | . . . . . . . . . Overflow Damage 33 | . . . . . . . . 33 Projectiles . | . . . . . . . . . Explosions 33 | . . . . . . . . 33 Melee . | . . . . . . . . . Knockbacks . | . . . . . . . . . Impact . | . . . . . . . . . Kinetic . | . . . . . . . . . Secondary . | . . . . . . . . . Self-Inflicted Damage 86 | . . . . . . . . 86 Shots 2 | . . . . . . . . 2 Rammed 6 | . 1 . . 2 . . 3 . Targets Rammed 6 | . 1 . . 2 . . 3 . Kicked . | . . . . . . . . . Crushed . | . . . . . . . . . Highest Temperature 325 | 30 325 18 12 . . . 42 7 Average Temperature 56 | 18 129 11 5 . . . 10 5 Received Heat Transfer 1446 | . 264 63 132 . . . 918 69 Siege Activations . | . . . . . . . . . Robots Corrupted . | . . . . . . . . . Combat Hostiles . | . . . . . . . . . Parts Fried . | . . . . . . . . . Impact Corruptions . | . . . . . . . . . Robots Melted . | . . . . . . . . . Combat Hostiles . | . . . . . . . . . Parts Melted 1 | . 1 . . . . . . . Heat Transferred 814 | . 814 . . . . . . . Parts Sabotaged . | . . . . . . . . . Parts Stolen . | . . . . . . . . . Parts Stripped . | . . . . . . . . . Power Chain Reactions . | . . . . . . . . . Alert | -11 -10 -10 -9 -9 -9 -8 -8 -7 ------- Run | Yrd Mat Min Mat Min Exi Min Mat Fac Peak Influence 535 | 5 140 50 283 31 . . 466 535 Initial 175 | . 3 15 19 31 . . . 175 Average 140 | . 53 22 136 15 . . 226 340 Maximum Alert Level 2 | . . . 1 . . . 2 2 Low Security (%) 70 | 100 100 100 73 100 . 100 46 20 Level 1 23 | . . . 26 . . . 46 55 Level 2 5 | . . . . . . . 6 24 Level 3 . | . . . . . . . . . Level 4 . | . . . . . . . . . Level 5 . | . . . . . . . . . High Security . | . . . . . . . . . Max Security . | . . . . . . . . . Squads Dispatched 8 | . 1 . 1 . . . 2 4 Investigation 4 | . 1 . . . . . 1 2 Extermination 1 | . . . . . . . . 1 Reinforcement 2 | . . . 1 . . . 1 . Assault 1 | . . . . . . . . 1 Garrison . | . . . . . . . . . Intercept . | . . . . . . . . . Searches Triggered . | . . . . . . . . . Construction Impeded . | . . . . . . . . . Haulers Reinforced . | . . . . . . . . . Active Scanning Responses . | . . . . . . . . . Cargo Convoy Interrupts 1 | . . . . . . . . 1 Stealth | -11 -10 -10 -9 -9 -9 -8 -8 -7 --------- Run | Yrd Mat Min Mat Min Exi Min Mat Fac Distress Signals 10 | . 2 . 1 . . . 4 3 Communications Jammed . | . . . . . . . . . Distress Signals . | . . . . . . . . . Times Spotted 117 | . 13 2 14 . . . 51 37 Peak Tracking Total 13 | . 3 2 4 . . . 5 13 Tactical Retreats 12 | . 2 1 1 . . . 2 6 Traps | -11 -10 -10 -9 -9 -9 -8 -8 -7 ------- Run | Yrd Mat Min Mat Min Exi Min Mat Fac Traps Triggered 2 | . 1 . . . . . 1 . Indirectly . | . . . . . . . . . Trap Hack Attempts . | . . . . . . . . . Triggered . | . . . . . . . . . Disarmed . | . . . . . . . . . Reprogrammed . | . . . . . . . . . Reused . | . . . . . . . . . Traps Extracted . | . . . . . . . . . Installed . | . . . . . . . . . Triggered . | . . . . . . . . . Machines | -11 -10 -10 -9 -9 -9 -8 -8 -7 ---------- Run | Yrd Mat Min Mat Min Exi Min Mat Fac Machines Disabled 2 | . 1 . . . . . . 1 Max in Single Turn 1 | . 1 . . . . . . 1 Garrison Access 1 | . . . . . . . . 1 Machines Repaired . | . . . . . . . . . Machines Dismantled . | . . . . . . . . . Machines Sabotaged . | . . . . . . . . . Overloaded Fab Kills . | . . . . . . . . . Hacking | -11 -10 -10 -9 -9 -9 -8 -8 -7 --------- Run | Yrd Mat Min Mat Min Exi Min Mat Fac Machines Accessed 19 | . 5 . 1 . . . 7 6 Terminals 16 | . 5 . 1 . . . 7 3 Fabricators 1 | . . . . . . . . 1 Repair Stations . | . . . . . . . . . Recycling Units 1 | . . . . . . . . 1 Scanalyzers . | . . . . . . . . . Garrison Access 1 | . . . . . . . . 1 Total Hacks 57 | . 11 . 2 . . . 26 18 Successful 28 | . 7 . . . . . 12 9 Failed 29 | . 4 . 2 . . . 14 9 Catastrophic 5 | . 1 . . . . . 4 . Database Lockouts . | . . . . . . . . . Manual 32 | . 6 . 2 . . . 16 8 Terminals 49 | . 11 . 2 . . . 26 10 Fabricators 1 | . . . . . . . . 1 Repair Stations . | . . . . . . . . . Recycling Units 3 | . . . . . . . . 3 Scanalyzers . | . . . . . . . . . Garrison Access 4 | . . . . . . . . 4 Terminal Hacks 14 | . 5 . . . . . 5 4 Part Schematic 1 | . . . . . . . . 1 Prototype ID Bank 1 | . . . . . . . 1 . Level Access Points 1 | . . . . . . . . 1 Branch Access Points 2 | . 1 . . . . . . 1 Emergency Access Points 4 | . 2 . . . . . 2 . Reinforcement Status 1 | . . . . . . . . 1 Zone Layout 4 | . 2 . . . . . 2 . Fabricator Hacks 1 | . . . . . . . . 1 Network Status 1 | . . . . . . . . 1 Repair Station Hacks . | . . . . . . . . . Recycling Unit Hacks 1 | . . . . . . . . 1 Report Inventory 1 | . . . . . . . . 1 Scanalyzer . | . . . . . . . . . Garrison Access Hacks . | . . . . . . . . . Unauthorized Hacks 12 | . 2 . . . . . 7 3 Terminals 12 | . 2 . . . . . 7 3 Assimilate 1 | . . . . . . . . 1 Botnet 11 | . 2 . . . . . 7 2 Fabricators . | . . . . . . . . . Repair Stations . | . . . . . . . . . Recycling Units . | . . . . . . . . . Scanalyzers . | . . . . . . . . . Garrison Access . | . . . . . . . . . Data Cores Recovered 1 | . . . . . . . 1 . Used . | . . . . . . . . . Hacking Detections 17 | . 4 . 1 . . . 7 5 Full Trace Events 3 | . . . . . . . 1 2 Feedback Events . | . . . . . . . . . Feedback Blocked . | . . . . . . . . . Robot Schematics Acquired . | . . . . . . . . . Robots Built . | . . . . . . . . . Authchips . | . . . . . . . . . Time . | . . . . . . . . . Total Robot Build Rating . | . . . . . . . . . Part Schematics Acquired 1 | . . . . . . . . 1 Parts Built . | . . . . . . . . . Authchips . | . . . . . . . . . Time . | . . . . . . . . . Total Part Build Rating . | . . . . . . . . . Parts Repaired . | . . . . . . . . . Time . | . . . . . . . . . Parts Recycled . | . . . . . . . . . Recycled Matter . | . . . . . . . . . Retrieved Matter . | . . . . . . . . . Retrieved Components . | . . . . . . . . . Parts Scanalyzed . | . . . . . . . . . Part Schematics Acquired . | . . . . . . . . . Parts Damaged . | . . . . . . . . . Bothacking | -11 -10 -10 -9 -9 -9 -8 -8 -7 ------------ Run | Yrd Mat Min Mat Min Exi Min Mat Fac Used RIF Installer . | . . . . . . . . . Robots Hacked . | . . . . . . . . . Non-combat . | . . . . . . . . . Combat . | . . . . . . . . . Robot Hacks Applied . | . . . . . . . . . Relay Couplers Released 2 | . . . . . . . . 2 Machine Destruction 2 | . . . . . . . . 2 Fabnet Peak Effective % . | . . . . . . . . . Robots Rewired . | . . . . . . . . . Allies Hacked . | . . . . . . . . . Hacks Repelled . | . . . . . . . . . Allies | -11 -10 -10 -9 -9 -9 -8 -8 -7 -------- Run | Yrd Mat Min Mat Min Exi Min Mat Fac Total Allies 5 | . . . . 4 . . . 1 Largest Group 4 | . . . . 4 3 3 3 1 Highest-Rated Group 71 | . . . . 71 40 40 40 10 Highest-Rated Ally 31 | . . . . 31 16 16 16 10 Total Orders . | . . . . . . . . . Ally Attacks 50 | . . . . . . . 50 . Total Damage 538 | . . . . . . . 538 . Kills 7 | . . . . . . . 7 . Allies Corrupted . | . . . . . . . . . Allies Melted . | . . . . . . . . . Intel | -11 -10 -10 -9 -9 -9 -8 -8 -7 ------- Run | Yrd Mat Min Mat Min Exi Min Mat Fac Robot Analysis Total . | . . . . . . . . . Derelict Logs Recovered 1 | . . . . 1 . . . . Drone Launches . | . . . . . . . . . Drone Recoveries . | . . . . . . . . . Exploration | -11 -10 -10 -9 -9 -9 -8 -8 -7 ------------- Run | Yrd Mat Min Mat Min Exi Min Mat Fac Turns Passed 5817 | 103 856 190 585 807 816 342 1431 687 Spaces Moved 4102 | 57 434 104 273 498 511 213 676 1336 Core 16 | 5 . . . . . . . 11 Treads 2768 | 52 434 104 273 498 511 213 676 7 Legs . | . . . . . . . . . Wheels . | . . . . . . . . . Hover . | . . . . . . . . . Flight 1318 | . . . . . . . . 1318 Fastest Speed 27 | 50 160 160 160 160 160 160 150 27 Average Speed 118 | 150 160 160 160 160 160 160 156 35 Slowest Speed 280 | 160 160 160 160 160 160 162 162 280 Overloaded Moves . | . . . . . . . . . Propulsion Burnouts . | . . . . . . . . . Robots Hopped 2 | . . . . . . . . 2 Cave-ins Triggered . | . . . . . . . . . Exploration Rate (%) 50 | 5 61 25 20 98 90 67 53 33 Regions Visited 8 Branch Regions 4 Pre-discovered Areas . | . . . . . . . . . Known Exits Taken 7 | . 1 1 1 1 1 1 1 . Unknown Exits Taken 1 | 1 . . . . . . . . Scrap Searched 2 | . . . . 1 . 1 . . Spaces Dug 2 | . . . . . . . . 2 Terrain Destroyed 52 | . . . . . . . 23 29 Melee 2 | . . . . . . . . 2 Projectile . | . . . . . . . . . AOE 50 | . . . . . . . 23 27 Terrain Rammed . | . . . . . . . . . Walls Destroyed . | . . . . . . . . . Machines Disabled . | . . . . . . . . . Actions | -11 -10 -10 -9 -9 -9 -8 -8 -7 --------- Run | Yrd Mat Min Mat Min Exi Min Mat Fac Total 4735 | 72 536 118 365 509 510 214 894 1517 Wait 294 | . 47 7 42 2 . . 76 120 Move 4090 | 56 433 103 272 497 510 212 675 1332 Hop 2 | . . . . . . . . 2 Pick Up 51 | 9 11 1 7 2 . . 12 9 Fast Attach 3 | 1 . . . . . . 2 . Attach 38 | 5 3 1 3 . . . 10 16 Detach 7 | . . . . . . . 1 6 Swap 17 | . 2 . . 2 . 1 10 2 Drop 30 | . 4 . 4 4 . 1 10 7 Fire 178 | 1 35 6 37 . . . 95 4 Melee 19 | . . . . . . . . 19 Ram . | . . . . . . . . . Kick . | . . . . . . . . . Crush 6 | . 1 . . 2 . . 3 . Escape Stasis . | . . . . . . . . . Rewire . | . . . . . . . . . Trap . | . . . . . . . . . Miscellaneous . | . . . . . . . . . Route ------- -11/Scrapyard -10/Materials (discovered 4 exits: *Mat x2 / *Min / *Sub) -10/Mines -9/Materials (discovered 2 exits: *Mat / *Min) -9/Mines (discovered 3 exits: *Mat x2 / *Exi) -9/Exiles (discovered 2 exits: *Min x2) -8/Mines -8/Materials (discovered 2 exits: *Fac / *Sto) -7/Factory (discovered 6 exits: *Fac x4 / Low x2) History --------- Turn | Location | Event 20 | -11/Scrapyard | Discovered new exit (range 16) 104 | -11/Scrapyard | Entered Materials 194 | -10/Materials | Discovered new exit (range 12) 309 | -10/Materials | Build established: Mutant 606 | -10/Materials | Identified exit to Mines 606 | -10/Materials | Discovered new exit (range 14) 790 | -10/Materials | Discovered new exit (range 11) 804 | -10/Materials | Identified exit to Subcaves 960 | -10/Materials | Entered Mines 1037 | -10/Mines | Met a Derelict bent on vengeance 1139 | -10/Mines | Discovered new exit (range 7) 1148 | -10/Mines | Identified exit to Materials 1150 | -10/Mines | Entered Materials 1150 | -9/Materials | Evolved 2 slots: Propulsion x2 1489 | -9/Materials | Discovered new exit (range 11) 1540 | -9/Materials | Discovered new exit (range 12) 1543 | -9/Materials | Build established: Scavenger-Mutant 1563 | -9/Materials | Identified exit to Mines 1735 | -9/Materials | Entered Mines 1754 | -9/Mines | Received a Rocket Launcher from a helpful Derelict 1797 | -9/Mines | Received a Mining Laser from a helpful Derelict 1802 | -9/Mines | Discovered new exit (range 5) 1810 | -9/Mines | Identified exit to Materials 1860 | -9/Mines | Discovered exit to Materials (range 11) 1943 | -9/Mines | Assisted by bots powering up and referring to "LRC-V3" 2206 | -9/Mines | Learned 2 Materials zone layouts 2490 | -9/Mines | Found a damaged Exp. Sensor Array with a note attached 2494 | -9/Mines | Found Prototype Device 2533 | -9/Mines | Deemed a non-threat by the Exiles lab entrance 2533 | -9/Mines | Discovered new exit (range 5) 2538 | -9/Mines | Identified exit to Exiles 2542 | -9/Mines | Entered Exiles 2542 | -9/Exiles | Found Exiles lab abandoned 2542 | -9/Exiles | Accompanied by 3 allies 2875 | -9/Exiles | Discovered new exit (range 11) 2890 | -9/Exiles | Identified exit to Mines 3341 | -9/Exiles | Discovered exit to Mines (range 14) 3358 | -9/Exiles | Entered Mines 3358 | -8/Mines | Accompanied by 3 allies 3677 | -8/Mines | Discovered exit to Materials (range 5) 3700 | -8/Mines | Entered Materials 3700 | -8/Materials | Accompanied by 3 allies 3700 | -8/Materials | Evolved 2 slots: Utility x2 3831 | -8/Materials | Identified Exp. Sensor Array 4655 | -8/Materials | Lost 3 parts (1n1u1w) 4911 | -8/Materials | Discovered new exit (range 10) 4928 | -8/Materials | Identified exit to Factory 5010 | -8/Materials | Discovered new exit (range 9) 5051 | -8/Materials | Identified exit to Storage 5131 | -8/Materials | Entered Factory 5131 | -7/Factory | Evolved 2 slots: Propulsion x1, Utility x1 5452 | -7/Factory | Build established: Scavenger-Sprinter 5556 | -7/Factory | Identified exit to Lower Caves 5556 | -7/Factory | Identified exit to Factory 5783 | -7/Factory | Lost 6 parts (1p5n) 5812 | -7/Factory | Cargo convoy interrupted 5813 | -7/Factory | Core integrity fell below 50% 5818 | -7/Factory | Core integrity fell below 20% 5818 | -7/Factory | Destroyed by H-55 Commando with Gauss Rifle Last Messages --------------- K-01 Serf destroyed. Slug penetrates I-36 Angel. C-30 ARC bursts open, deploying its payload. H-55 Commando unfolds itself. X-67 Chaingunner unfolds itself. P-60 Hacker unfolds itself. Katana destroyed. ALERT: Cargo convoy interrupted, initiating access lockdown. U-05 Engineer destroyed. Rocket Launcher destroyed. Slug penetrates I-36 Angel. R-06 Scavenger collects Wheel. C-30 ARC bursts open, deploying its payload. X-67 Chaingunner unfolds itself. X-57 Shotgunner unfolds itself. X-67 Chaingunner unfolds itself. H-55 Commando unfolds itself. I-36 Angel unfolds itself. Penetrated by Slug. Map ----- +----------------------------------------------------+ | ?????????????????????????????????????????????????? | | ?????????????????????????????????????????????????? | | ?????????????????????????????????????????????????? | | ?????????????????????????????????????????????????? | | ?????????????????????????????????????????????????? | | ?????????????????????????????????????????????????? | | ?????????????????????????????????????????????????? | | ?????????????????????????????????????????????????? | | ?????????????????????????????????????????????????? | | ?????????????????????????????????????????????????? | | ?????????????????????????????????????????????????? | | ?????????????????????????????????????????????????? | | ?????????????????????????????????????????????????? | | ?????????????????????????????????????????????????? | | ?????????????????????????????????????????????????? | | ?????????????????????????????????????????????????? | | ?????????????????????????????????????????????????? | | ?????????????????????????????????????????????????? | | ?????????????????????????????????????????????????? | | "???????????????????????????????????????????????? | | ""????????? ###+########????????????????????????? | | ??????? ????????????????????????? | | ?????????? k i #####???????????????????? | | ??????????????? xh x #???????????????????? | | ???????????????????? x%x